[Event "*** Titled Tuesday 3|2 Blitz"]
[Site "Chess.com"]
[Date "2016.10.04"]
[Round "7"]
[White "Iuri_Shkuro"]
[Black "Oleksandr_Bortnyk"]
[Result "0-1"]
[WhiteElo "2530"]
[BlackElo "2749"]
[TimeControl "180+2"]
[EndTime "12:27:29 PDT"]
[Termination "Oleksandr_Bortnyk won by resignation"]

1. e4 {[%clk 0:03:01.9]} 1... g6 {[%clk 0:02:59]} 2. Nc3 {[%clk 0:03:01.7]} 2...
Bg7 {[%clk 0:02:59.7]} 3. f4 {[%clk 0:03:02]} 3... c6 {[%clk 0:02:58.8]} 4. d4
{[%clk 0:03:00.7]} 4... d6 {[%clk 0:02:57.2]} 5. Nf3 {[%clk 0:03:00.1]} 5... b5
{[%clk 0:02:56.8]} 6. Bd3 {[%clk 0:02:59.1]} 6... b4 {[%clk 0:02:57.4]} 7. Ne2
{[%clk 0:02:59]} 7... a5 {[%clk 0:02:57.7]} 8. O-O {[%clk 0:02:59.2]} 8... Nf6
{[%clk 0:02:57.4]} 9. e5 {[%clk 0:02:58.9]} 9... Nd5 {[%clk 0:02:57]} 10. Ng3
{[%clk 0:02:56.5]} 10... Ba6 {[%clk 0:02:26.4]} 11. f5 {[%clk 0:02:55.3]} 11...
dxe5 {[%clk 0:02:26.1]} 12. dxe5 {[%clk 0:02:52.6]} 12... Nd7 {[%clk 0:02:22.5]}
13. Bxa6 {[%clk 0:02:50.3]} 13... Qb6+ {[%clk 0:02:15.4]} 14. Kh1 {[%clk
0:02:48.9]} 14... Qxa6 {[%clk 0:02:16.5]} 15. e6 {[%clk 0:02:44.9]} 15... fxe6
{[%clk 0:02:18.4]} 16. fxe6 {[%clk 0:02:45.5]} 16... Nc5 {[%clk 0:02:18.7]} 17.
Ng5 {[%clk 0:02:34.7]} 17... O-O-O {[%clk 0:02:15.9]} 18. Qe1 {[%clk 0:02:30.9]}
18... Rd6 {[%clk 0:02:05.2]} 19. Be3 {[%clk 0:02:09]} 19... Nxe6 {[%clk
0:01:44.5]} 20. Nf7 {[%clk 0:02:06.7]} 20... Bxb2 {[%clk 0:01:45.4]} 21. Nxd6+
{[%clk 0:02:06.3]} 21... exd6 {[%clk 0:01:47.3]} 22. Rd1 {[%clk 0:01:54.4]}
22... Bc3 {[%clk 0:01:38.3]} 23. Bd2 {[%clk 0:01:53.9]} 23... Be5 {[%clk
0:01:38.4]} 24. Rf7 {[%clk 0:01:49.7]} 24... Nd8 {[%clk 0:01:29.1]} 25. Rf3
{[%clk 0:01:44.9]} 25... Qc4 {[%clk 0:01:27.4]} 26. a3 {[%clk 0:01:39.1]} 26...
Ne6 {[%clk 0:01:28.2]} 27. axb4 {[%clk 0:01:38.5]} 27... axb4 {[%clk 0:01:30.1]}
28. Rf7 {[%clk 0:01:32.3]} 28... Rf8 {[%clk 0:01:23.3]} 29. Rxf8+ {[%clk
0:01:32.5]} 29... Nxf8 {[%clk 0:01:25.2]} 30. Qf2 {[%clk 0:01:28]} 30... Nd7
{[%clk 0:01:26.2]} 31. Bg5 {[%clk 0:01:19.8]} 31... Kb7 {[%clk 0:01:06.2]} 32.
Qf7 {[%clk 0:01:07.1]} 32... Nb6 {[%clk 0:01:06.9]} 33. Qf2 {[%clk 0:00:52.2]}
33... Nc5 {[%clk 0:01:00.3]} 34. Be3 {[%clk 0:00:44.5]} 34... Nd5 {[%clk
0:00:52.2]} 35. Bxc5 {[%clk 0:00:41.5]} 35... dxc5 {[%clk 0:00:54.1]} 36. Nf1
{[%clk 0:00:31.7]} 36... Kb6 {[%clk 0:00:44.1]} 37. Re1 {[%clk 0:00:25.8]} 37...
Qf4 {[%clk 0:00:43.3]} 38. Qe2 {[%clk 0:00:22.8]} 38... Bc3 {[%clk 0:00:37.3]}
39. Rd1 {[%clk 0:00:22.4]} 39... Qe5 {[%clk 0:00:35.7]} 40. Qd3 {[%clk
0:00:19.9]} 40... Qg5 {[%clk 0:00:31.6]} 41. Qe4 {[%clk 0:00:18.4]} 41... h5
{[%clk 0:00:26.7]} 42. Qe8 {[%clk 0:00:17.2]} 42... Be5 {[%clk 0:00:25.1]} 43.
Re1 {[%clk 0:00:16]} 43... Bc7 {[%clk 0:00:24]} 44. Qc8 {[%clk 0:00:14]} 44...
Qf5 {[%clk 0:00:18.4]} 45. Ra1 {[%clk 0:00:12.6]} 45... Qxc8 {[%clk 0:00:18.9]}
0-1

[Event "*** Titled Tuesday 3|2 Blitz"]
[Site "Chess.com"]
[Date "2016.10.04"]
[Round "7"]
[White "LuckyTiger"]
[Black "ChessWarrior7197"]
[Result "1-0"]
[WhiteElo "2581"]
[BlackElo "2478"]
[TimeControl "180+2"]
[EndTime "12:27:31 PDT"]
[Termination "LuckyTiger won by resignation"]

1. e4 {[%clk 0:03:01.9]} 1... e5 {[%clk 0:03:01]} 2. Nf3 {[%clk 0:03:02.9]} 2...
Nc6 {[%clk 0:03:02]} 3. Bb5 {[%clk 0:03:04.5]} 3... a6 {[%clk 0:03:02.7]} 4. Ba4
{[%clk 0:03:06.1]} 4... Nf6 {[%clk 0:03:03.5]} 5. d3 {[%clk 0:03:07.2]} 5... b5
{[%clk 0:03:03.5]} 6. Bb3 {[%clk 0:03:08.4]} 6... Be7 {[%clk 0:03:04.7]} 7. a4
{[%clk 0:03:03.8]} 7... Bb7 {[%clk 0:03:02.8]} 8. O-O {[%clk 0:03:03.9]} 8...
O-O {[%clk 0:03:03]} 9. Nc3 {[%clk 0:03:03.8]} 9... b4 {[%clk 0:02:54.6]} 10.
Nd5 {[%clk 0:03:04.6]} 10... d6 {[%clk 0:02:53.8]} 11. a5 {[%clk 0:03:00.5]}
11... Nxd5 {[%clk 0:02:44.9]} 12. Bxd5 {[%clk 0:03:02.4]} 12... Qc8 {[%clk
0:02:45.5]} 13. Bd2 {[%clk 0:02:59.2]} 13... Rb8 {[%clk 0:02:45.3]} 14. Ra4
{[%clk 0:02:41.8]} 14... Ba8 {[%clk 0:02:36.5]} 15. Bxc6 {[%clk 0:02:40.5]}
15... Bxc6 {[%clk 0:02:36.9]} 16. Rxb4 {[%clk 0:02:42.2]} 16... f5 {[%clk
0:02:35.1]} 17. Qe2 {[%clk 0:02:39.8]} 17... fxe4 {[%clk 0:02:21.9]} 18. dxe4
{[%clk 0:02:41.7]} 18... Rxb4 {[%clk 0:02:22.8]} 19. Bxb4 {[%clk 0:02:42.4]}
19... Qe6 {[%clk 0:02:19.3]} 20. Nd2 {[%clk 0:02:36.9]} 20... Bg5 {[%clk
0:02:14.3]} 21. c4 {[%clk 0:02:36.5]} 21... Bxd2 {[%clk 0:02:14]} 22. Bxd2
{[%clk 0:02:38.4]} 22... Be8 {[%clk 0:01:39.7]} 23. f3 {[%clk 0:02:34.5]} 23...
Bf7 {[%clk 0:01:39.9]} 24. Rc1 {[%clk 0:02:34.4]} 24... c5 {[%clk 0:01:41.3]}
25. b3 {[%clk 0:02:29.1]} 25... Rb8 {[%clk 0:01:41]} 26. Rc3 {[%clk 0:02:30.7]}
26... h6 {[%clk 0:01:35]} 27. Rd3 {[%clk 0:02:31.9]} 27... Qe7 {[%clk
0:01:33.9]} 28. Be1 {[%clk 0:02:32.6]} 28... Qc7 {[%clk 0:01:29.1]} 29. Qd1
{[%clk 0:02:33.1]} 29... Rd8 {[%clk 0:01:29.6]} 30. Bc3 {[%clk 0:02:32.6]} 30...
Qe7 {[%clk 0:01:12.9]} 31. Bb2 {[%clk 0:02:13.5]} 31... Rd7 {[%clk 0:01:13.5]}
32. Ba3 {[%clk 0:02:12.8]} 32... Be6 {[%clk 0:01:12.2]} 33. Rd2 {[%clk 0:02:13]}
33... Qd8 {[%clk 0:01:12.6]} 34. b4 {[%clk 0:01:58.9]} 34... cxb4 {[%clk
0:01:03.7]} 35. Bxb4 {[%clk 0:02:00.8]} 35... Qc7 {[%clk 0:00:30.4]} 36. Rxd6
{[%clk 0:01:08.1]} 36... Rxd6 {[%clk 0:00:27.1]} 37. Qxd6 {[%clk 0:01:10]} 37...
Qxc4 {[%clk 0:00:27.8]} 38. Qxe5 {[%clk 0:01:09]} 38... Qc1+ {[%clk 0:00:22.7]}
39. Kf2 {[%clk 0:01:09.1]} 39... Qc2+ {[%clk 0:00:15.1]} 40. Kg3 {[%clk
0:01:09.7]} 40... Qc6 {[%clk 0:00:16]} 41. Bc3 {[%clk 0:01:09.2]} 41... Qd7
{[%clk 0:00:17]} 42. h4 {[%clk 0:01:10.3]} 42... Bc4 {[%clk 0:00:17.2]} 43. Kh2
{[%clk 0:01:09.4]} 43... Bb5 {[%clk 0:00:17.6]} 44. f4 {[%clk 0:01:10.3]} 44...
Kh7 {[%clk 0:00:14.8]} 45. f5 {[%clk 0:01:11.4]} 45... Qf7 {[%clk 0:00:15.2]}
46. Qd4 {[%clk 0:01:05.2]} 46... Bc6 {[%clk 0:00:15.2]} 47. Qd6 {[%clk
0:01:02.8]} 47... Bxe4 {[%clk 0:00:14.7]} 48. f6 {[%clk 0:01:04.1]} 48... gxf6
{[%clk 0:00:15.1]} 49. Bxf6 {[%clk 0:01:03.1]} 49... Bb7 {[%clk 0:00:14.8]} 50.
Qd3+ {[%clk 0:01:01.3]} 50... Kg8 {[%clk 0:00:13.5]} 51. Qg3+ {[%clk 0:01:00.8]}
51... Kh7 {[%clk 0:00:13.5]} 52. Qd3+ {[%clk 0:01:01.4]} 52... Kg8 {[%clk
0:00:14.6]} 53. Qf5 {[%clk 0:01:01.1]} 53... h5 {[%clk 0:00:12.5]} 54. Qg5+
{[%clk 0:01:00.2]} 54... Kh7 {[%clk 0:00:13.2]} 55. Be5 {[%clk 0:01:00.4]} 55...
Bc8 {[%clk 0:00:13.5]} 56. Bf4 {[%clk 0:01:00]} 56... Qf5 {[%clk 0:00:12]} 57.
Qe7+ {[%clk 0:00:56.2]} 57... Kg8 {[%clk 0:00:12]} 58. Be5 {[%clk 0:00:56]}
58... Qg4 {[%clk 0:00:12.3]} 59. Qe8+ {[%clk 0:00:53.3]} 59... Kh7 {[%clk
0:00:07.7]} 60. Qf7+ {[%clk 0:00:55.2]} 60... Kh6 {[%clk 0:00:09.1]} 61. Bf4+
{[%clk 0:00:55.1]} 1-0

[Event "*** Titled Tuesday 3|2 Blitz"]
[Site "Chess.com"]
[Date "2016.10.04"]
[Round "7"]
[White "cstefan"]
[Black "DavitZarkua"]
[Result "0-1"]
[WhiteElo "2010"]
[BlackElo "2500"]
[TimeControl "180+2"]
[EndTime "12:27:31 PDT"]
[Termination "DavitZarkua won by resignation"]

1. e4 {[%clk 0:03:01.9]} 1... g6 {[%clk 0:03:02]} 2. d4 {[%clk 0:03:02.4]} 2...
Bg7 {[%clk 0:03:03.9]} 3. Nc3 {[%clk 0:03:04.3]} 3... c5 {[%clk 0:03:05.8]} 4.
Nf3 {[%clk 0:03:06.2]} 4... cxd4 {[%clk 0:03:06.5]} 5. Nxd4 {[%clk 0:03:08.1]}
5... Nc6 {[%clk 0:03:08.2]} 6. Nb3 {[%clk 0:03:09.2]} 6... Nf6 {[%clk
0:03:09.4]} 7. Be2 {[%clk 0:03:10.6]} 7... O-O {[%clk 0:03:10.7]} 8. O-O {[%clk
0:03:12.2]} 8... d6 {[%clk 0:03:12.2]} 9. Bg5 {[%clk 0:03:13.7]} 9... a5 {[%clk
0:03:13]} 10. a4 {[%clk 0:03:14.2]} 10... Be6 {[%clk 0:03:14.3]} 11. Kh1 {[%clk
0:03:15.2]} 11... Bxb3 {[%clk 0:03:13.7]} 12. cxb3 {[%clk 0:03:17.1]} 12... Nb4
{[%clk 0:03:14.6]} 13. f4 {[%clk 0:03:14.7]} 13... Rc8 {[%clk 0:03:13.1]} 14.
Bc4 {[%clk 0:02:52.9]} 14... Qb6 {[%clk 0:03:07.2]} 15. Bh4 {[%clk 0:02:44.6]}
15... e6 {[%clk 0:03:06.6]} 16. Bf2 {[%clk 0:02:34.7]} 16... Qc6 {[%clk
0:03:06.4]} 17. Qf3 {[%clk 0:02:26.6]} 17... d5 {[%clk 0:03:03.8]} 18. Bb5
{[%clk 0:02:18.5]} 18... Qc7 {[%clk 0:03:02.5]} 19. e5 {[%clk 0:02:16.2]} 19...
Nd7 {[%clk 0:03:01]} 20. Ne2 {[%clk 0:02:10.5]} 20... Nb8 {[%clk 0:02:56.3]} 21.
Rac1 {[%clk 0:02:09.1]} 21... N8c6 {[%clk 0:02:57.1]} 22. Qh3 {[%clk 0:02:06.5]}
22... h5 {[%clk 0:02:52.1]} 23. Nd4 {[%clk 0:02:01.9]} 23... Qe7 {[%clk
0:02:51.4]} 24. Nf3 {[%clk 0:02:02.4]} 24... Rfd8 {[%clk 0:02:46.4]} 25. Bh4
{[%clk 0:01:57.5]} 25... Qf8 {[%clk 0:02:44.5]} 26. Bf6 {[%clk 0:01:46.2]} 26...
Bxf6 {[%clk 0:02:27.5]} 27. exf6 {[%clk 0:01:48.1]} 27... Qh6 {[%clk 0:02:25.9]}
28. Ng5 {[%clk 0:01:23.9]} 28... d4 {[%clk 0:02:20.3]} 29. Bc4 {[%clk
0:01:17.8]} 29... Qh8 {[%clk 0:01:36.3]} 30. Bxe6 {[%clk 0:00:38.2]} 30... Rc7
{[%clk 0:01:36.4]} 31. Nxf7 {[%clk 0:00:22.2]} 31... Rxf7 {[%clk 0:01:35.7]} 32.
f5 {[%clk 0:00:20.1]} 32... g5 {[%clk 0:01:35.7]} 33. Rce1 {[%clk 0:00:14.6]}
33... d3 {[%clk 0:01:32.6]} 34. Bxf7+ {[%clk 0:00:10.8]} 34... Kxf7 {[%clk
0:01:32.4]} 35. Re6 {[%clk 0:00:12.7]} 35... d2 {[%clk 0:01:30.3]} 36. Rd1
{[%clk 0:00:13.8]} 36... h4 {[%clk 0:01:27.4]} 37. Qg4 {[%clk 0:00:14.3]} 37...
Rd4 {[%clk 0:01:15.5]} 38. Qxg5 {[%clk 0:00:14.9]} 38... Qh7 {[%clk 0:01:15.6]}
39. h3 {[%clk 0:00:10.1]} 39... Nd5 {[%clk 0:01:10.4]} 40. Rxd2 {[%clk
0:00:09.3]} 40... Rxd2 {[%clk 0:01:10.5]} 41. Qxd2 {[%clk 0:00:11.2]} 41... Qxf5
{[%clk 0:01:11.6]} 42. Re1 {[%clk 0:00:12.3]} 42... Nxf6 {[%clk 0:01:04.5]} 43.
Qe2 {[%clk 0:00:11.9]} 43... Kg6 {[%clk 0:01:03.3]} 44. Rf1 {[%clk 0:00:12.4]}
44... Qe5 {[%clk 0:01:01.9]} 45. Qf3 {[%clk 0:00:11]} 45... Nd4 {[%clk
0:00:58.2]} 46. Qf2 {[%clk 0:00:12.4]} 46... Nf5 {[%clk 0:00:58.1]} 47. Kg1
{[%clk 0:00:12.3]} 47... Ne4 {[%clk 0:00:50.8]} 48. Qb6+ {[%clk 0:00:09.1]}
48... Nfd6 {[%clk 0:00:49.3]} 49. Re1 {[%clk 0:00:08]} 49... Qc5+ {[%clk
0:00:46.8]} 50. Qxc5 {[%clk 0:00:08.6]} 50... Nxc5 {[%clk 0:00:48.7]} 51. Re3
{[%clk 0:00:09.9]} 51... Nde4 {[%clk 0:00:45.3]} 52. Kf1 {[%clk 0:00:10.7]}
52... Kf5 {[%clk 0:00:45.4]} 53. Ke2 {[%clk 0:00:12]} 53... Ke5 {[%clk
0:00:45.3]} 54. Kf3 {[%clk 0:00:12.1]} 54... Kd4 {[%clk 0:00:44.3]} 55. Kf4
{[%clk 0:00:13.2]} 55... Ne6+ {[%clk 0:00:43.2]} 56. Kf3 {[%clk 0:00:14.5]}
56... N4g5+ {[%clk 0:00:43.3]} 57. Ke2 {[%clk 0:00:14.8]} 57... Nf4+ {[%clk
0:00:43.8]} 58. Kd2 {[%clk 0:00:15.5]} 58... Ne4+ {[%clk 0:00:44.5]} 59. Kc2
{[%clk 0:00:14.9]} 0-1

[Event "*** Titled Tuesday 3|2 Blitz"]
[Site "Chess.com"]
[Date "2016.10.04"]
[Round "7"]
[White "bugsbunny444"]
[Black "LonesomeGeorge1"]
[Result "1/2-1/2"]
[WhiteElo "2334"]
[BlackElo "2172"]
[TimeControl "180+2"]
[EndTime "12:27:44 PDT"]
[Termination "Game drawn by agreement"]

1. Nf3 {[%clk 0:03:02]} 1... Nf6 {[%clk 0:02:59.4]} 2. c4 {[%clk 0:03:03.2]}
2... Rg8 {[%clk 0:03:00.1]} 3. d4 {[%clk 0:03:01.5]} 3... h6 {[%clk 0:02:55.4]}
4. Nc3 {[%clk 0:02:57.2]} 4... g5 {[%clk 0:02:55.7]} 5. h3 {[%clk 0:02:58.4]}
5... d6 {[%clk 0:02:55.2]} 6. e4 {[%clk 0:02:58.7]} 6... g4 {[%clk 0:02:48.7]}
7. hxg4 {[%clk 0:02:59.1]} 7... Bxg4 {[%clk 0:02:40.9]} 8. Be3 {[%clk
0:02:46.3]} 8... Nc6 {[%clk 0:02:39.7]} 9. Be2 {[%clk 0:02:44.3]} 9... h5 {[%clk
0:02:31.8]} 10. Qd2 {[%clk 0:02:30.1]} 10... e5 {[%clk 0:02:25.2]} 11. d5 {[%clk
0:02:26]} 11... Ne7 {[%clk 0:02:09.9]} 12. Nh4 {[%clk 0:02:12.4]} 12... Qd7
{[%clk 0:01:58.7]} 13. f3 {[%clk 0:02:06.5]} 13... O-O-O {[%clk 0:01:41.1]} 14.
O-O-O {[%clk 0:01:58.2]} 14... Ng6 {[%clk 0:01:33.6]} 15. fxg4 {[%clk
0:01:40.9]} 15... Nxg4 {[%clk 0:01:24.6]} 16. Nf5 {[%clk 0:01:33.8]} 16... Nxe3
{[%clk 0:01:23.8]} 17. Qxe3 {[%clk 0:01:34.1]} 17... Ne7 {[%clk 0:01:24.2]} 18.
Qxa7 {[%clk 0:01:29.9]} 18... c6 {[%clk 0:01:09.8]} 19. Na4 {[%clk 0:00:46.9]}
19... Qe8 {[%clk 0:00:32.9]} 20. Rxh5 {[%clk 0:00:17.5]} 20... Nxf5 {[%clk
0:00:32]} 21. Rxf5 {[%clk 0:00:19.4]} 21... Rxg2 {[%clk 0:00:33.2]} 22. Rf2
{[%clk 0:00:14.6]} 22... Bh6+ {[%clk 0:00:35.1]} 23. Kb1 {[%clk 0:00:15.6]}
23... Rxf2 {[%clk 0:00:28.1]} 24. Qxf2 {[%clk 0:00:16.5]} 24... c5 {[%clk
0:00:23]} 25. Bg4+ {[%clk 0:00:15.4]} 25... Kb8 {[%clk 0:00:23.6]} 26. Rf1
{[%clk 0:00:15.5]} 26... Qxa4 {[%clk 0:00:23.5]} 27. b3 {[%clk 0:00:14]} 27...
Qa3 {[%clk 0:00:17.6]} 28. Qf6 {[%clk 0:00:14]} 28... Rg8 {[%clk 0:00:03.1]} 29.
Qxh6 {[%clk 0:00:08.2]} 29... Rxg4 {[%clk 0:00:03.9]} 30. Qf8+ {[%clk
0:00:09.2]} 30... Ka7 {[%clk 0:00:04.3]} 31. Qe8 {[%clk 0:00:10.5]} 31... Rg2
{[%clk 0:00:04.2]} 32. Qa4+ {[%clk 0:00:11.4]} 32... Qxa4 {[%clk 0:00:05.4]} 33.
bxa4 {[%clk 0:00:13.3]} 33... Re2 {[%clk 0:00:06.2]} 34. Rxf7 {[%clk 0:00:14.1]}
34... Rxe4 {[%clk 0:00:07.8]} 35. Rd7 {[%clk 0:00:15.6]} 35... Rxc4 {[%clk
0:00:09.2]} 36. Rxd6 {[%clk 0:00:17.2]} 36... Rd4 {[%clk 0:00:09.8]} 37. a5
{[%clk 0:00:17.6]} 37... e4 {[%clk 0:00:09.8]} 38. Kc2 {[%clk 0:00:16.5]} 38...
e3 {[%clk 0:00:11.1]} 39. Re6 {[%clk 0:00:16]} 39... Rxd5 {[%clk 0:00:12.3]} 40.
Rxe3 {[%clk 0:00:17.1]} 40... Ka6 {[%clk 0:00:13.8]} 41. Re7 {[%clk 0:00:13]}
41... c4 {[%clk 0:00:15]} 42. Rc7 {[%clk 0:00:13]} 42... Rxa5 {[%clk 0:00:11.2]}
43. Rxc4 {[%clk 0:00:14]} 43... Rxa2+ {[%clk 0:00:12.8]} 44. Kb3 {[%clk
0:00:15.9]} 44... Rh2 {[%clk 0:00:14.3]} 45. Rg4 {[%clk 0:00:13.1]} 45... b5
{[%clk 0:00:14.4]} 46. Kb4 {[%clk 0:00:07.3]} 46... Rb2+ {[%clk 0:00:14.2]} 47.
Kc3 {[%clk 0:00:08.2]} 47... Rb1 {[%clk 0:00:15.2]} 48. Kc2 {[%clk 0:00:08.3]}
48... Rh1 {[%clk 0:00:15.8]} 49. Kb3 {[%clk 0:00:09.5]} 49... Ka5 {[%clk
0:00:16.9]} 50. Kb2 {[%clk 0:00:10.4]} 50... Rh3 {[%clk 0:00:17.3]} 51. Kc2
{[%clk 0:00:10.4]} 51... b4 {[%clk 0:00:18.3]} 52. Rg8 {[%clk 0:00:04.8]} 52...
Rh2+ {[%clk 0:00:09]} 53. Kb3 {[%clk 0:00:06]} 53... Rh3+ {[%clk 0:00:10.5]} 54.
Kb2 {[%clk 0:00:07.4]} 54... Kb5 {[%clk 0:00:11.6]} 55. Rb8+ {[%clk 0:00:07.5]}
55... Kc4 {[%clk 0:00:13.1]} 56. Rc8+ {[%clk 0:00:09]} 56... Kb5 {[%clk
0:00:14.4]} 57. Rb8+ {[%clk 0:00:10.5]} 57... Kc4 {[%clk 0:00:15.1]} 1/2-1/2

[Event "*** Titled Tuesday 3|2 Blitz"]
[Site "Chess.com"]
[Date "2016.10.04"]
[Round "7"]
[White "Tash_Boy"]
[Black "ChessSkool"]
[Result "0-1"]
[WhiteElo "2443"]
[BlackElo "2478"]
[TimeControl "180+2"]
[EndTime "12:29:46 PDT"]
[Termination "ChessSkool won by resignation"]

1. e4 {[%clk 0:02:54]} 1... c6 {[%clk 0:02:59.8]} 2. d4 {[%clk 0:02:46.4]} 2...
d5 {[%clk 0:02:59.1]} 3. Nd2 {[%clk 0:02:47.5]} 3... dxe4 {[%clk 0:02:59.1]} 4.
Nxe4 {[%clk 0:02:49]} 4... Nf6 {[%clk 0:03:01]} 5. Nxf6+ {[%clk 0:02:50]} 5...
exf6 {[%clk 0:03:02.9]} 6. c3 {[%clk 0:02:50.4]} 6... Bd6 {[%clk 0:03:04]} 7.
Bd3 {[%clk 0:02:51.6]} 7... Nd7 {[%clk 0:03:05.3]} 8. Ne2 {[%clk 0:02:53]} 8...
Qc7 {[%clk 0:03:02.2]} 9. Qc2 {[%clk 0:02:54.3]} 9... Nf8 {[%clk 0:03:03.4]} 10.
Be3 {[%clk 0:02:54.6]} 10... Be6 {[%clk 0:03:01.3]} 11. O-O-O {[%clk 0:02:49.3]}
11... Ng6 {[%clk 0:02:53.6]} 12. Kb1 {[%clk 0:02:48.6]} 12... O-O {[%clk
0:02:52.8]} 13. h4 {[%clk 0:02:46.9]} 13... Rfe8 {[%clk 0:02:54.1]} 14. h5
{[%clk 0:02:47.8]} 14... Nf8 {[%clk 0:02:55.8]} 15. Rh4 {[%clk 0:02:48]} 15...
a5 {[%clk 0:02:47.6]} 16. g4 {[%clk 0:02:44.7]} 16... h6 {[%clk 0:02:36.5]} 17.
Bc1 {[%clk 0:02:35]} 17... a4 {[%clk 0:02:35.2]} 18. f4 {[%clk 0:02:36.4]} 18...
Qa5 {[%clk 0:02:08.4]} 19. c4 {[%clk 0:02:23.9]} 19... b5 {[%clk 0:01:57.9]} 20.
c5 {[%clk 0:01:48.4]} 20... Be7 {[%clk 0:01:55]} 21. f5 {[%clk 0:01:38.6]} 21...
Bc4 {[%clk 0:00:49.6]} 22. Bxc4 {[%clk 0:01:37.1]} 22... bxc4 {[%clk 0:00:51.5]}
23. Qxc4 {[%clk 0:01:38.5]} 23... Bd8 {[%clk 0:00:53.2]} 24. Nc3 {[%clk
0:01:34.5]} 24... Bc7 {[%clk 0:00:42.1]} 25. Rh3 {[%clk 0:01:29.7]} 25... a3
{[%clk 0:00:34.5]} 26. b3 {[%clk 0:01:20.7]} 26... Rad8 {[%clk 0:00:28]} 27. Qa4
{[%clk 0:01:09.8]} 27... Qxa4 {[%clk 0:00:18.9]} 28. bxa4 {[%clk 0:01:09.6]}
28... Ba5 {[%clk 0:00:11.6]} 29. Kc2 {[%clk 0:01:10.4]} 29... Nd7 {[%clk
0:00:11.3]} 30. Bxa3 {[%clk 0:01:08.5]} 30... Bxc3 {[%clk 0:00:10.4]} 31. Kxc3
{[%clk 0:01:08.5]} 31... Ne5 {[%clk 0:00:09.7]} 32. Rg3 {[%clk 0:01:09]} 32...
Nd7 {[%clk 0:00:05.3]} 33. a5 {[%clk 0:01:03.4]} 33... Ra8 {[%clk 0:00:04.6]}
34. Bb4 {[%clk 0:01:03.8]} 34... Nb8 {[%clk 0:00:04.6]} 35. Rdd3 {[%clk
0:00:59.4]} 35... Na6 {[%clk 0:00:04.4]} 36. a3 {[%clk 0:01:00.4]} 36... Nc7
{[%clk 0:00:05]} 37. Kc4 {[%clk 0:00:58.2]} 37... Nd5 {[%clk 0:00:05.7]} 38. Rd2
{[%clk 0:00:58.2]} 38... Re4 {[%clk 0:00:04.7]} 39. Kd3 {[%clk 0:00:45.4]} 39...
Re1 {[%clk 0:00:05]} 40. Kc2 {[%clk 0:00:34.5]} 40... Kf8 {[%clk 0:00:05]} 41.
Kb3 {[%clk 0:00:25]} 41... Rb1+ {[%clk 0:00:04.8]} 42. Kc2 {[%clk 0:00:25.1]}
42... Re1 {[%clk 0:00:05.1]} 43. Rf2 {[%clk 0:00:22.9]} 43... Re4 {[%clk
0:00:04.2]} 44. Rd2 {[%clk 0:00:23.7]} 44... Re1 {[%clk 0:00:02.6]} 45. Kb2
{[%clk 0:00:24.4]} 45... Re4 {[%clk 0:00:03]} 46. Rgg2 {[%clk 0:00:24.1]} 46...
Nf4 {[%clk 0:00:03]} 47. Rgf2 {[%clk 0:00:23.7]} 47... Ke8 {[%clk 0:00:04.1]}
48. d5 {[%clk 0:00:20.8]} 48... Nxd5 {[%clk 0:00:05]} 49. Rfe2 {[%clk
0:00:21.6]} 49... Re5 {[%clk 0:00:04.9]} 50. Rxe5+ {[%clk 0:00:21.9]} 50... fxe5
{[%clk 0:00:06.8]} 51. Kb3 {[%clk 0:00:23.8]} 51... Kd7 {[%clk 0:00:07.1]} 52.
Kc4 {[%clk 0:00:24.8]} 52... f6 {[%clk 0:00:06.4]} 53. Rxd5+ {[%clk 0:00:25.4]}
53... cxd5+ {[%clk 0:00:08.3]} 54. Kxd5 {[%clk 0:00:26.6]} 54... Kc7 {[%clk
0:00:04.5]} 55. Ke6 {[%clk 0:00:27.7]} 55... Kc6 {[%clk 0:00:04.4]} 56. Kf7
{[%clk 0:00:28]} 56... Ra7+ {[%clk 0:00:05.2]} 57. Ke6 {[%clk 0:00:27.6]} 57...
e4 {[%clk 0:00:06.2]} 58. Bd2 {[%clk 0:00:24]} 58... Ra8 {[%clk 0:00:05.9]} 59.
Kf7 {[%clk 0:00:24.3]} 59... Ra7+ {[%clk 0:00:07.1]} 60. Ke6 {[%clk 0:00:25.4]}
60... Rb7 {[%clk 0:00:08]} 61. Bb4 {[%clk 0:00:23.8]} 61... e3 {[%clk
0:00:07.7]} 62. Be1 {[%clk 0:00:21.6]} 62... e2 {[%clk 0:00:08.7]} 63. a6 {[%clk
0:00:22.8]} 63... Ra7 {[%clk 0:00:09.7]} 64. g5 {[%clk 0:00:18.5]} 64... fxg5
{[%clk 0:00:08.7]} 65. f6 {[%clk 0:00:19.3]} 65... gxf6 {[%clk 0:00:09.6]} 66.
Kxf6 {[%clk 0:00:20.8]} 66... Kd5 {[%clk 0:00:09.9]} 67. Kf5 {[%clk 0:00:21.4]}
67... Rxa6 {[%clk 0:00:11]} 68. Kg4 {[%clk 0:00:22.2]} 68... Rxa3 {[%clk
0:00:11.7]} 69. c6 {[%clk 0:00:21.6]} 69... Kxc6 {[%clk 0:00:12.9]} 0-1

[Event "*** Titled Tuesday 3|2 Blitz"]
[Site "Chess.com"]
[Date "2016.10.04"]
[Round "8"]
[White "Rating-Schmating"]
[Black "filali-oujda"]
[Result "1-0"]
[WhiteElo "2217"]
[BlackElo "2296"]
[TimeControl "180+2"]
[EndTime "12:34:37 PDT"]
[Termination "Rating-Schmating won on time"]

1. e4 {[%clk 0:03:01.9]} 1... c6 {[%clk 0:03:00.6]} 2. Nf3 {[%clk 0:03:02.7]}
2... d5 {[%clk 0:03:01.8]} 3. Nc3 {[%clk 0:03:02.3]} 3... dxe4 {[%clk
0:03:01.7]} 4. Nxe4 {[%clk 0:03:03.2]} 4... Nf6 {[%clk 0:03:01.7]} 5. Nxf6+
{[%clk 0:03:01.4]} 5... exf6 {[%clk 0:03:02.6]} 6. d3 {[%clk 0:03:01.4]} 6...
Bd6 {[%clk 0:03:04.5]} 7. Be2 {[%clk 0:03:02.1]} 7... O-O {[%clk 0:03:05.3]} 8.
O-O {[%clk 0:03:03.2]} 8... Bf5 {[%clk 0:02:55.3]} 9. Nh4 {[%clk 0:03:00.7]}
9... Be6 {[%clk 0:02:54.9]} 10. Bg4 {[%clk 0:03:01.2]} 10... Bxg4 {[%clk
0:02:51.2]} 11. Qxg4 {[%clk 0:03:03.1]} 11... Qd7 {[%clk 0:02:43.3]} 12. Qxd7
{[%clk 0:02:51.8]} 12... Nxd7 {[%clk 0:02:42.8]} 13. Nf5 {[%clk 0:02:53.4]}
13... Bc7 {[%clk 0:02:44]} 14. Be3 {[%clk 0:02:53.7]} 14... Rfe8 {[%clk
0:02:45.2]} 15. Rfe1 {[%clk 0:02:54.3]} 15... Ne5 {[%clk 0:02:45.9]} 16. h3
{[%clk 0:02:53.1]} 16... Rad8 {[%clk 0:02:44.9]} 17. Rad1 {[%clk 0:02:53.2]} 1-0

[Event "*** Titled Tuesday 3|2 Blitz"]
[Site "Chess.com"]
[Date "2016.10.04"]
[Round "8"]
[White "hansen"]
[Black "pKiLz5Rn9b"]
[Result "1-0"]
[WhiteElo "2636"]
[BlackElo "2494"]
[TimeControl "180+2"]
[EndTime "12:34:39 PDT"]
[Termination "hansen won by resignation"]

1. e4 {[%clk 0:03:02]} 1... e6 {[%clk 0:03:01]} 2. d4 {[%clk 0:02:55.7]} 2... d5
{[%clk 0:03:02.1]} 3. Nc3 {[%clk 0:02:53.5]} 3... Nf6 {[%clk 0:03:01.8]} 4. Bg5
{[%clk 0:02:51.8]} 4... Be7 {[%clk 0:03:02.5]} 5. e5 {[%clk 0:02:51.1]} 5...
Nfd7 {[%clk 0:03:03.9]} 6. h4 {[%clk 0:02:47.3]} 6... h6 {[%clk 0:02:41.8]} 7.
Be3 {[%clk 0:02:46.6]} 7... c5 {[%clk 0:02:40.2]} 8. dxc5 {[%clk 0:02:45]} 8...
Nc6 {[%clk 0:02:34.6]} 9. Qg4 {[%clk 0:02:41.9]} 9... Ndxe5 {[%clk 0:02:06]} 10.
Qxg7 {[%clk 0:02:38.5]} 10... Bf6 {[%clk 0:02:06.7]} 11. Qg3 {[%clk 0:02:39.4]}
11... d4 {[%clk 0:00:55.9]} 12. O-O-O {[%clk 0:02:39.6]} 12... Qe7 {[%clk
0:00:57.4]} 13. Bxd4 {[%clk 0:02:27.6]} 13... Nxd4 {[%clk 0:00:58.7]} 14. Rxd4
{[%clk 0:02:28.2]} 14... Qxc5 {[%clk 0:01:00.3]} 15. Bb5+ {[%clk 0:02:15.5]}
15... Ke7 {[%clk 0:00:57]} 16. Nge2 {[%clk 0:02:14.5]} 16... a6 {[%clk
0:00:54.6]} 17. Ne4 {[%clk 0:02:11.8]} 17... Qxb5 {[%clk 0:00:55.6]} 18. Qa3+
{[%clk 0:02:12.1]} 1-0